bitfinex-derivatives/quotes_SOLF0:USTF0_20250819
["timestamp","ask_amount","ask_price","bid_price","bid_amount"]
[1755569229945,3.8363432,182.62,182.54,2.97]
[1755569230146,3.01,182.63,182.54,2.97]
[1755569230445,3.83588727,182.62,182.54,2.97]
[1755569230643,3.01,182.63,182.54,2.97]
[1755569230845,3.83568892,182.62,182.54,2.97]
[1755569231043,3.01,182.63,182.54,2.97]
[1755569231244,3.83478378,182.62,182.54,2.97]
[1755569231446,3.01,182.63,182.54,2.97]
[1755569231741,3.83453453,182.62,182.54,2.97]
[1755569231946,3.01,182.63,182.54,2.97]
[1755569232143,3.8345315,182.62,182.55,3.02481864]
[1755569232343,3.01,182.63,182.55,8.50001864]
[1755569232837,3.01,182.63,182.55,3.02481864]
[1755569235254,3.01,182.63,182.55,8.50001864]
[1755569235647,3.01,182.63,182.56,2.97]
[1755569237254,3.01,182.63,182.55,3.02481864]
[1755569237452,3.01,182.63,182.53,2.97]
[1755569237647,6.03481864,182.63,182.53,2.97]
[1755569237854,3.01,182.62,182.53,2.97]
[1755569238053,3.01,182.61,182.53,2.97]
[1755569240055,3.01,182.61,182.53,8.4456]
[1755569240257,3.01,182.61,182.53,2.97]
[1755569240454,3.01,182.61,182.54,3.02481864]
[1755569240960,3.01,182.61,182.54,8.50031864]
[1755569241658,3.01,182.65,182.58,2.97]
[1755569242355,3.01,182.65,182.6,3.02481864]
[1755569242558,139.35,182.69,182.61,2.91]
[1755569242753,3.83532351,182.68,182.61,2.91]
[1755569242961,3.83532351,182.67,182.61,2.91]
[1755569243258,3.11,182.66,182.57,5.93481864]
[1755569243460,3.11,182.66,182.57,11.40941864]
[1755569243851,3.11,182.66,182.57,5.93481864]
[1755569244256,3.11,182.66,182.6,5.93481864]
[1755569244458,136.24,182.69,182.6,5.93481864]
[1755569244759,3.83513935,182.68,182.6,5.93481864]
[1755569245060,3.83513935,182.67,182.6,5.93481864]
[1755569245262,3.11,182.68,182.6,5.93481864]
[1755569245951,3.11,182.68,182.6,11.40831864]
[1755569246564,3.11,182.68,182.6,5.93481864]
[1755569247266,3.11,182.68,182.6,11.40851864]
[1755569248454,371.27,182.73,182.61,2.91]
[1755569248662,3.83062554,182.72,182.64,2.91]
[1755569248860,3.83062554,182.71,182.64,2.91]
[1755569249062,3.83062554,182.7,182.64,2.91]
[1755569249367,3.11,182.71,182.63,3.02481864]
[1755569250566,3.11,182.71,182.64,2.91]
[1755569250860,3.11,182.71,182.63,3.02481864]
[1755569251063,3.11,182.71,182.61,2.91]
[1755569251670,3.11,182.69,182.59,3.02481864]
[1755569251862,3.11,182.67,182.57,2.91]
[1755569252169,139.37,182.67,182.57,2.91]
[1755569252371,3.11,182.66,182.57,2.91]
[1755569252571,6.85635992,182.65,182.54,2.91]
[1755569252771,3.11,182.64,182.54,2.91]
[1755569254671,3.11,182.64,182.54,8.3855]
[1755569256575,3.11,182.64,182.55,5.4752]
[1755569256766,3.11,182.64,182.54,2.91]
[1755569257973,3.11,182.61,182.54,2.91]
[1755569258365,3.11,182.61,182.51,8.3862]
[1755569262177,3.11,182.61,182.52,5.4761]
[1755569263172,3.11,182.61,182.53,2.91]
[1755569264168,3.11,182.61,182.53,8.3858]
[1755569264374,3.11,182.61,182.53,2.91]
[1755569265373,3.11,182.66,182.56,5.93481864]
[1755569265579,3.84294905,182.65,182.57,2.91]
[1755569265778,3.11,182.66,182.57,2.91]
[1755569266083,139.08481864,182.68,182.54,2.91]
[1755569266084,3.11,182.64,182.54,2.91]
[1755569266273,3.11,182.62,182.54,2.91]
[1755569266478,3.84392149,182.61,182.54,2.91]
[1755569266688,6.95390159,182.6,182.54,2.91]
[1755569266884,3.11,182.6,182.54,2.91]
[1755569268586,3.84690163,182.59,182.54,2.91]
[1755569268783,3.11,182.6,182.54,2.91]
[1755569269180,3.11,182.6,182.52,5.4762]
[1755569269181,3.84826157,182.59,182.55,2.91]
[1755569269485,3.11,182.6,182.56,2.91]
[1755569269679,3.11,182.6,182.57,2.91]
[1755569269881,3.11,182.63,182.57,2.91]
[1755569270082,6.9586424,182.62,182.57,2.91]
[1755569270283,3.8486424,182.61,182.57,2.91]
[1755569270786,3.8486424,182.61,182.54,3.02481864]
[1755569271081,145.10727718,182.68,182.58,2.91]
[1755569271082,3.11,182.68,182.58,2.91]
[1755569271284,8.3158105,182.67,182.58,2.91]
[1755569271480,8.3158105,182.66,182.58,2.91]
[1755569271684,3.85210235,182.65,182.58,2.91]
[1755569271889,3.85210235,182.64,182.58,2.91]
[1755569272083,3.85210235,182.63,182.6,2.91]
[1755569272284,3.11,182.68,182.6,2.91]
[1755569272584,8.3176701,182.67,182.6,2.91]
[1755569272787,3.85294855,182.66,182.6,2.91]
[1755569273086,3.85294855,182.65,182.61,2.96]
[1755569273286,3.85294855,182.64,182.61,2.96]
[1755569273490,3.11,182.68,182.61,2.96]
[1755569273692,3.05,182.66,182.58,2.96]
[1755569273884,3.85323583,182.65,182.58,2.96]
[1755569274084,3.85323583,182.64,182.58,2.96]
[1755569274285,136.08,182.69,182.61,2.96]
[1755569274485,3.85337732,182.68,182.61,2.96]
[1755569274694,3.85337732,182.67,182.61,2.96]
[1755569274884,3.85337732,182.66,182.6,3.02481864]
[1755569275082,136.08,182.69,182.62,2.96]
[1755569275280,3.85283409,182.68,182.62,2.96]
[1755569275486,3.85283409,182.67,182.62,2.96]
[1755569275791,3.85283409,182.66,182.62,2.96]
[1755569275988,3.05,182.67,182.63,2.96]
[1755569276185,6.90135639,182.66,182.6,5.98481864]
[1755569276496,3.84924114,182.65,182.6,3.02481864]
[1755569276790,3.05,182.68,182.61,2.96]
[1755569276994,3.84910153,182.67,182.61,2.96]
[1755569277182,3.84910153,182.66,182.61,5.4735]
[1755569277387,136.08,182.69,182.63,2.96]
[1755569277388,3.05,182.67,182.63,2.96]
[1755569277589,3.8482359,182.66,182.64,2.96]
[1755569277796,3.05,182.68,182.64,2.96]
[1755569277995,136.08,182.69,182.64,2.96]
[1755569278194,3.84880059,182.68,182.63,3.02481864]
[1755569278395,3.05,182.71,182.65,2.96]
[1755569278587,0.04100796,182.68,182.66,2.96]
[1755569278791,3.09100796,182.68,182.65,0.04169525]
[1755569278991,0.04100796,182.68,182.65,3.00169525]
[1755569279193,0.04100796,182.68,182.66,2.96]
[1755569280289,3.05,182.66,182.65,0.04169525]
[1755569280788,6.89683279,182.66,182.65,0.04169525]
[1755569280991,11.36347116,182.66,182.65,0.04169525]
[1755569281398,11.36348926,182.66,182.65,0.04169525]
[1755569282096,11.36442601,182.66,182.65,0.04169525]
[1755569282496,11.36443652,182.66,182.65,0.04169525]
[1755569282698,6.89611769,182.66,182.65,0.04169525]
[1755569283007,3.84611769,182.66,182.65,0.04169525]
[1755569283702,3.84722144,182.66,182.65,0.04169525]
[1755569283896,3.05,182.66,182.65,0.04169525]
[1755569284102,6.89722144,182.66,182.65,0.04169525]
[1755569286300,6.89722144,182.66,182.57,3.02481864]
[1755569286506,6.89722144,182.65,182.56,2.96]
[1755569286801,3.84722144,182.64,182.56,2.96]
[1755569287001,3.84722144,182.63,182.56,2.96]
[1755569287305,3.05,182.65,182.56,2.96]
[1755569287494,3.8444721,182.64,182.56,2.96]
[1755569287699,0.04045121,182.61,182.56,2.96]
[1755569287900,0.04045121,182.61,182.56,5.475]
[1755569288109,0.04045121,182.61,182.59,2.96]
[1755569288598,0.04045121,182.61,182.56,5.475]
[1755569289200,0.04045121,182.61,182.58,2.96]
[1755569289802,3.05,182.6,182.52,3.02481864]
[1755569290604,0.04186707,182.58,182.52,3.02481864]
[1755569290797,0.04186707,182.58,182.54,2.96]
[1755569291408,3.09186707,182.58,182.54,2.96]
[1755569291910,3.09186707,182.58,182.52,3.02481864]
[1755569295111,3.09186707,182.58,182.51,2.96]
[1755569296005,3.84438145,182.57,182.51,2.96]
[1755569296305,3.09186707,182.58,182.51,2.96]
[1755569296514,3.05,182.56,182.49,3.02481864]
[1755569297310,0.03717427,182.54,182.49,3.02481864]
[1755569297509,3.05,182.53,182.49,2.96]
[1755569297709,0.03717427,182.54,182.47,2.96]
[1755569298706,0.03717427,182.54,182.49,3.02481864]
[1755569299104,0.03717427,182.54,182.51,2.96]
[1755569300901,0.03717427,182.54,182.49,3.02481864]
[1755569301104,0.03717427,182.54,182.52,2.96]
[1755569303109,0.03717427,182.54,182.49,3.02481864]
[1755569303515,0.03717427,182.54,182.53,3.02]
[1755569303813,0.03717427,182.54,182.51,3.02]
[1755569304015,0.03717427,182.54,182.52,3.02]
[1755569304210,0.03717427,182.54,182.5,3.02]
[1755569304407,0.03717427,182.54,182.51,3.02]
[1755569304603,0.03717427,182.54,182.52,3.02]
[1755569304807,3.03,182.58,182.52,3.02]
[1755569305206,0.0411761,182.55,182.5,3.02]
[1755569305409,0.0411761,182.55,182.49,8.50181864]
[1755569305618,0.0411761,182.55,182.53,3.02]
[1755569306619,0.0411761,182.55,182.54,3.02]
[1755569309321,0.0411761,182.55,182.52,3.02]
[1755569309517,0.0411761,182.55,182.53,3.02]
[1755569309729,0.0411761,182.55,182.51,3.02481864]
[1755569309908,0.0411761,182.55,182.54,3.02]
[1755569312125,0.0411761,182.55,182.52,3.02]
[1755569314419,0.0411761,182.55,182.53,3.02]
[1755569315424,3.0711761,182.55,182.51,6.04481864]
[1755569316024,3.03,182.53,182.48,6.04481864]
[1755569316220,3.03,182.53,182.49,3.02]
[1755569316414,3.03,182.53,182.5,3.02]
[1755569316917,0.03609844,182.53,182.5,3.02]
[1755569319119,0.03609844,182.53,182.48,8.50201864]
[1755569319324,0.03609844,182.53,182.5,3.02]
[1755569319617,0.03609844,182.53,182.52,3.02]
[1755569320123,0.03609844,182.53,182.48,3.02481864]
[1755569320417,0.03609844,182.53,182.51,3.02]
[1755569320721,0.03609844,182.53,182.52,3.02]
[1755569321423,136.1,182.65,182.55,3.02]
[1755569321618,3.03,182.61,182.55,3.02]
[1755569321818,6.87635361,182.6,182.55,3.02]
[1755569322017,3.03,182.59,182.55,3.02]
[1755569322626,0.03830685,182.59,182.52,3.02]
[1755569322823,3.03,182.58,182.52,3.02]
[1755569323330,0.03666884,182.57,182.52,3.02]
[1755569323523,3.03,182.56,182.52,3.02]
[1755569323825,0.03666884,182.57,182.52,3.02]
[1755569324226,0.03666884,182.57,182.53,3.02]
[1755569324616,0.03666884,182.57,182.55,3.02]
[1755569324831,3.03,182.63,182.56,3.02]
[1755569325126,136.1,182.65,182.59,3.02]
[1755569325428,3.03,182.62,182.59,3.02]
[1755569326120,3.03,182.62,182.59,3.0616371]
[1755569326715,136.1,182.65,182.59,3.0616371]
[1755569326919,3.03,182.63,182.59,3.0616371]
[1755569327323,136.1,182.65,182.59,3.0616371]
[1755569327529,3.03,182.62,182.59,0.0416371]
[1755569327730,3.03,182.64,182.59,0.0416371]
[1755569327922,3.85208583,182.63,182.59,0.0416371]
[1755569328231,136.1,182.65,182.59,0.0416371]
[1755569328232,3.03,182.61,182.59,0.0416371]
[1755569328425,6.8815699,182.6,182.59,0.0416371]
[1755569329233,3.03,182.6,182.59,0.0416371]
[1755569329925,6.88263265,182.6,182.59,0.0416371]
[1755569330634,3.03,182.59,182.47,6.04481864]
[1755569330933,11.91944769,182.6,182.47,6.04481864]
[1755569330934,3.03,182.57,182.47,6.04481864]
[1755569331133,3.85263265,182.56,182.47,6.04481864]
[1755569331336,3.85263265,182.55,182.47,6.04481864]
[1755569331526,3.03,182.57,182.47,6.04481864]
[1755569331726,3.8514918,182.56,182.47,6.04481864]
[1755569332025,0.03539291,182.53,182.47,6.04481864]
[1755569332730,0.03539291,182.53,182.48,3.13]
[1755569332937,0.03539291,182.53,182.5,3.02481864]
[1755569333231,0.03539291,182.53,182.52,3.13]
[1755569334738,0.03539291,182.53,182.5,6.15481864]
[1755569335029,3.01,182.52,182.48,3.13]
[1755569335428,3.01,182.52,182.47,3.02481864]
[1755569335629,3.01,182.52,182.49,3.13]
[1755569337037,3.01,182.52,182.47,3.02481864]
[1755569337234,0.03539291,182.53,182.47,3.02481864]
[1755569337535,0.03539291,182.53,182.49,3.13]
[1755569337937,0.03539291,182.53,182.5,3.13]
[1755569338235,0.03539291,182.53,182.52,3.13]
[1755569339631,3.01,182.58,182.52,3.13]
[1755569339834,3.01,182.58,182.54,3.13]
[1755569340340,3.01,182.64,182.54,3.13]
[1755569340527,3.01,182.62,182.54,3.13]
[1755569340734,3.01,182.6,182.51,3.13]
[1755569340933,3.01,182.58,182.51,3.13]
[1755569341131,3.85386103,182.57,182.5,3.02481864]
[1755569341333,3.85386103,182.56,182.53,0.03501031]
[1755569341528,3.01,182.54,182.53,0.03501031]
[1755569341839,6.86386103,182.54,182.53,0.03501031]
[1755569349541,4.39386103,182.54,182.45,124.08183159]
[1755569349740,6.86386103,182.53,182.45,124.08183159]
[1755569350044,6.86386103,182.52,182.45,124.08183159]
[1755569350240,3.85386103,182.51,182.45,3.13]
[1755569350449,3.01,182.5,182.41,6.15481864]
[1755569350855,0.03996049,182.47,182.41,6.15481864]
[1755569355670,3.01,182.46,182.39,3.13]
[1755569356455,0.03845101,182.44,182.4,3.13]
[1755569356652,0.03845101,182.44,182.41,3.13]
[1755569356962,3.01,182.42,182.39,3.13]
[1755569357757,0.03845101,182.44,182.38,6.15481864]
[1755569357958,0.03845101,182.44,182.38,11.63511864]
[1755569359360,0.03845101,182.44,182.38,6.15481864]
[1755569360364,0.03845101,182.44,182.38,11.63521864]
[1755569361061,0.03845101,182.44,182.38,6.15481864]
[1755569361261,3.01,182.42,182.38,6.15481864]
[1755569362765,0.03845101,182.44,182.39,2.98]
[1755569363066,3.09845101,182.44,182.39,2.98]
[1755569364765,0.03845101,182.44,182.39,2.98]
[1755569364963,3.06,182.43,182.39,2.98]
[1755569365965,3.06,182.43,182.35,2.98]
[1755569366166,3.06,182.43,182.35,8.4613]
[1755569366369,3.06,182.43,182.36,2.98]
[1755569366755,0.03675881,182.41,182.37,2.98]
[1755569367068,0.03675881,182.41,182.38,2.98]
[1755569367566,0.03675881,182.41,182.39,2.98]
[1755569368368,0.03675881,182.41,182.4,2.98]
[1755569369970,0.03675881,182.41,182.37,8.50541864]
[1755569370166,3.09675881,182.41,182.38,2.98]
[1755569370371,0.03675881,182.41,182.39,2.98]
[1755569372378,0.03675881,182.41,182.38,5.4803]
[1755569372577,0.03675881,182.41,182.4,2.98]
[1755569372776,0.03675881,182.41,182.4,6.00481864]
[1755569373078,3.06,182.49,182.42,2.98]
[1755569373872,136.12,182.52,182.43,3.02481864]
[1755569374067,136.12,182.52,182.44,2.98]
[1755569374272,136.12,182.52,182.44,3.01905411]
[1755569374677,136.12,182.52,182.44,8.49745411]
[1755569376274,136.12,182.52,182.46,3.02481864]
[1755569376477,136.12,182.52,182.46,6.00481864]
[1755569376776,371.22,182.56,182.5,2.98]
[1755569377572,3.06,182.55,182.51,0.0387252]
[1755569377774,368.16,182.56,182.51,0.0387252]
[1755569377975,3.06,182.53,182.51,0.0387252]
[1755569378674,3.06,182.55,182.51,0.0387252]
[1755569378875,368.16,182.56,182.51,0.0387252]
[1755569378876,3.06,182.54,182.51,0.0387252]
[1755569379176,3.06,182.55,182.51,0.0387252]
[1755569379380,3.06,182.53,182.51,0.0387252]
[1755569379678,3.06,182.52,182.51,0.0387252]
[1755569380073,3.06,182.54,182.51,0.0387252]
[1755569381375,368.16,182.56,182.51,3.0187252]
[1755569381572,6.90729235,182.55,182.51,3.0187252]
[1755569381768,3.06,182.55,182.51,3.0187252]
[1755569381969,368.16,182.56,182.51,0.0387252]
[1755569382273,3.06,182.54,182.51,0.0387252]
[1755569382476,3.06,182.52,182.51,0.0387252]
[1755569383175,3.06,182.55,182.51,0.0387252]
[1755569383682,3.06,182.54,182.51,0.0387252]
[1755569384382,3.06,182.54,182.51,3.0187252]
[1755569385074,368.16,182.56,182.51,0.0387252]
[1755569385279,3.84885184,182.55,182.51,0.0387252]
[1755569385475,3.06,182.53,182.51,0.0387252]
[1755569385685,3.06,182.52,182.51,0.0387252]
[1755569386689,3.06,182.51,182.39,6.00481864]
[1755569386989,3.06,182.49,182.4,5.4796]
[1755569387680,3.06,182.49,182.41,5.4794]
[1755569387882,0.04126129,182.46,182.42,2.98]
[1755569388080,0.04126129,182.46,182.43,2.98]
[1755569388888,0.04126129,182.46,182.39,3.02481864]
[1755569391080,0.04126129,182.46,182.39,8.50481864]
[1755569392185,0.04126129,182.46,182.4,2.98]
[1755569392788,0.04126129,182.46,182.41,5.4792]
[1755569392997,0.04126129,182.46,182.45,3.03]
[1755569393193,3.09,182.53,182.45,6.05481864]
[1755569393400,507.31,182.56,182.49,3.03]
[1755569393690,3.85536634,182.55,182.49,3.03]
[1755569393887,6.94536634,182.54,182.49,3.03]
[1755569394088,3.09,182.54,182.49,3.03]
[1755569394490,3.09,182.54,182.5,0.0351023]
[1755569394696,504.22,182.56,182.5,3.0651023]
[1755569394895,6.94648875,182.55,182.5,3.0651023]
[1755569395101,3.09,182.59,182.51,3.02481864]
[1755569395395,3.85717258,182.58,182.51,3.02481864]
[1755569395595,3.09,182.59,182.51,3.02481864]
[1755569395791,6.94643036,182.58,182.53,3.06878216]
[1755569395988,3.09,182.59,182.53,3.06878216]
[1755569396182,3.09,182.57,182.53,0.03878216]
[1755569396396,3.09,182.54,182.53,0.03878216]
[1755569398998,3.09,182.58,182.53,0.03878216]
[1755569399295,3.09,182.56,182.53,0.03878216]
[1755569399591,3.09,182.59,182.53,3.0636008]
[1755569400090,3.85533289,182.58,182.53,0.03878216]
[1755569400287,3.09,182.59,182.53,0.03878216]
[1755569400484,3.85504139,182.58,182.53,0.03878216]
[1755569400689,3.09,182.56,182.53,0.03878216]
[1755569400991,139.13,182.6,182.53,3.0636008]
[1755569401196,3.85568898,182.59,182.53,0.03878216]
[1755569401495,3.09,182.63,182.57,3.02481864]
[1755569402194,3.09,182.63,182.58,0.03857286]
[1755569402391,136.02,182.66,182.6,6.05481864]
[1755569403694,136.02,182.66,182.6,3.03]
[1755569404300,3.09,182.7,182.6,6.05481864]
[1755569404504,0.9528112,182.73,182.64,3.03]
[1755569404692,136.9728112,182.73,182.65,3.02481864]
[1755569404997,3.09,182.72,182.67,0.03938005]
[1755569405194,136.9728112,182.73,182.67,0.03938005]
[1755569405401,3.09,182.7,182.67,0.03938005]
[1755569405701,139.99762984,182.73,182.67,0.03938005]
[1755569406100,3.09,182.71,182.67,0.03938005]
[1755569406298,3.09,182.7,182.67,0.03938005]
[1755569406492,135.98,182.72,182.67,0.03938005]
[1755569406802,135.98,182.72,182.67,3.06938005]
[1755569406803,139.07,182.72,182.67,3.06938005]
[1755569407595,504.14,182.77,182.69,3.03]
[1755569408097,3.09,182.8,182.71,3.02481864]
[1755569408297,136.0,182.79,182.71,3.02481864]
[1755569408497,136.0,182.79,182.71,3.06185146]
[1755569408701,136.0,182.79,182.72,3.03]
[1755569409999,136.0,182.79,182.71,3.06185146]
[1755569410204,3.09,182.78,182.71,0.03703282]
[1755569410701,3.09,182.78,182.71,3.06185146]
[1755569411005,3.09,182.8,182.72,3.03]
[1755569411198,3.09,182.8,182.72,8.5001]
[1755569411904,136.1,182.81,182.74,0.03504709]
[1755569412314,3.09,182.8,182.74,0.03504709]
[1755569414197,136.1,182.81,182.74,6.08986573]
[1755569414809,139.19,182.81,182.74,0.03504709]
[1755569415909,136.1,182.81,182.75,3.03]
[1755569416505,136.1,182.81,182.74,0.03504709]
[1755569416506,6.11481864,182.8,182.74,0.03504709]
[1755569416702,6.89330403,182.79,182.74,0.03504709]
[1755569416912,3.09,182.79,182.74,0.03504709]
[1755569417210,3.02481864,182.8,182.74,0.03504709]
[1755569417513,3.09,182.78,182.74,0.03504709]
[1755569417711,3.09,182.79,182.74,0.03504709]
[1755569417911,137.05238095,182.81,182.74,3.06504709]
[1755569418110,3.09,182.8,182.74,0.03504709]
[1755569418311,6.11481864,182.8,182.74,0.03504709]
[1755569418509,3.09,182.79,182.74,0.03504709]
[1755569419211,3.02481864,182.8,182.74,0.03504709]
[1755569419509,3.09,182.76,182.74,0.03504709]
[1755569419816,3.09,182.75,182.63,3.03]
[1755569420018,3.09,182.73,182.63,3.03]
[1755569421211,0.03705996,182.7,182.63,3.03]
[1755569422411,0.03705996,182.7,182.63,8.5029]
[1755569422604,0.03705996,182.7,182.63,3.03]
[1755569423016,0.03705996,182.7,182.63,8.5028]
[1755569423218,0.03705996,182.7,182.63,3.03]
[1755569424012,3.13705996,182.7,182.59,3.02481864]
[1755569424214,3.13705996,182.7,182.59,5.94481864]
[1755569424415,3.1,182.7,182.59,5.94481864]
[1755569424912,0.03463829,182.66,182.59,5.94481864]
[1755569426320,0.03463829,182.66,182.59,2.92]
[1755569427016,3.1,182.65,182.55,2.92]
[1755569427520,3.1,182.65,182.51,4.76294835]
[1755569427521,3.1,182.65,182.51,7.68294835]
[1755569428120,0.03831367,182.6,182.51,2.92]
[1755569428314,3.13831367,182.6,182.51,2.92]
[1755569430211,3.13831367,182.6,182.51,8.3962]
[1755569431223,3.13831367,182.6,182.51,2.92]
[1755569432418,0.03831367,182.6,182.52,2.92]
[1755569432810,0.03831367,182.6,182.52,8.396]
[1755569433519,0.03831367,182.6,182.52,2.92]
[1755569434023,0.03831367,182.6,182.52,8.3961]
[1755569434229,0.03831367,182.6,182.53,2.92]
[1755569434919,0.03831367,182.6,182.53,8.3958]
[1755569435229,0.03831367,182.6,182.54,2.92]
[1755569438115,3.1,182.59,182.51,2.92]
[1755569439117,3.1,182.59,182.47,7.68294835]
[1755569439320,3.1,182.59,182.48,2.92]
[1755569439614,3.1,182.59,182.51,2.92]
[1755569440024,3.1,182.59,182.51,8.3964]
[1755569440527,0.03621255,182.57,182.51,2.92]
[1755569441626,3.1,182.55,182.48,7.68294835]
[1755569442727,3.1,182.55,182.48,13.16024835]
[1755569443728,3.1,182.63,182.49,2.92]
[1755569443927,4.76294835,182.64,182.49,2.92]
[1755569443928,3.1,182.61,182.49,2.92]
[1755569444524,3.1,182.61,182.51,5.4764]
[1755569444827,3.1,182.61,182.51,2.92]
[1755569445132,3.1,182.61,182.48,13.16034835]
[1755569446027,3.1,182.61,182.49,5.477]
[1755569446524,3.1,182.61,182.5,3.02513098]
[1755569447730,3.1,182.58,182.47,3.02513098]
[1755569447932,6.06751142,182.65,182.31,1893.34]
[1755569447933,3.1,182.55,182.44,3.02513098]
[1755569448125,3.1,182.55,182.45,8.3982]
[1755569448322,3.1,182.55,182.47,3.02513098]
[1755569448528,3.1,182.55,182.48,2.92]
[1755569451531,3.1,182.58,182.48,2.92]
[1755569452828,3.1,182.58,182.48,8.3973]
[1755569453023,368.04,182.62,182.51,2.93]
[1755569453024,3.03,182.61,182.51,2.93]
[1755569453331,3.03,182.61,182.52,5.4762]
[1755569453725,3.03,182.61,182.51,2.93]
[1755569454029,3.03,182.59,182.48,2.93]
[1755569457236,3.03,182.59,182.5,2.93]
[1755569459738,3.82601052,182.58,182.46,3.02513098]
[1755569460032,3.02513098,182.59,182.46,3.02513098]
[1755569460033,3.03,182.57,182.46,3.02513098]
[1755569460239,3.03,182.57,182.47,2.93]
[1755569460441,3.03,182.61,182.5,2.93]
[1755569460731,3.03,182.59,182.5,2.93]
[1755569461637,3.03,182.59,182.52,3.02513098]
[1755569461831,3.03,182.59,182.52,5.95513098]
[1755569462336,3.83294189,182.58,182.49,3.02513098]
[1755569462538,6.86234388,182.57,182.48,5.95513098]
[1755569462740,3.03,182.57,182.48,5.95513098]
[1755569463442,3.83580059,182.56,182.48,5.95513098]
[1755569463632,3.03,182.57,182.48,5.95513098]
[1755569463832,3.83587425,182.56,182.48,5.95513098]
[1755569464038,3.03,182.57,182.48,5.95513098]
[1755569464237,3.83634441,182.56,182.48,5.95513098]
[1755569464435,3.83634441,182.55,182.48,5.95513098]
[1755569464632,3.03,182.57,182.48,5.95513098]
[1755569464835,3.8409367,182.56,182.48,5.95513098]
[1755569465035,3.8409367,182.55,182.48,5.95513098]
[1755569465232,3.8409367,182.54,182.48,5.95513098]
[1755569465435,3.03,182.55,182.45,3.02513098]
[1755569465732,3.84206997,182.54,182.45,5.95513098]
[1755569465933,3.84206997,182.53,182.45,5.95513098]
[1755569466136,3.03,182.55,182.45,5.95513098]
[1755569466441,3.84371258,182.54,182.46,2.93]
[1755569466637,3.03,182.55,182.46,2.93]
[1755569466838,3.84419978,182.54,182.46,2.93]
[1755569467042,3.03,182.55,182.46,2.93]
[1755569467238,3.84419978,182.54,182.46,2.93]
[1755569467445,3.03,182.55,182.46,2.93]
[1755569467738,3.84700921,182.54,182.46,2.93]
[1755569467940,3.03,182.55,182.46,2.93]
[1755569468240,3.84700921,182.54,182.46,2.93]
[1755569468434,3.85018982,182.53,182.46,2.93]
[1755569468635,3.03,182.55,182.46,2.93]
[1755569468840,3.85041059,182.54,182.46,2.93]
[1755569469138,3.85041059,182.53,182.46,2.93]
[1755569469444,3.03,182.55,182.46,2.93]
[1755569469645,3.85259522,182.54,182.46,2.93]
[1755569469834,3.85259522,182.53,182.46,2.93]
[1755569470141,3.03,182.55,182.46,2.93]
[1755569470345,3.85486102,182.54,182.46,2.93]
[1755569470543,3.85486102,182.53,182.46,2.93]
[1755569470846,3.85486102,182.52,182.46,2.93]
[1755569471044,3.03,182.55,182.46,2.93]
[1755569471244,3.85478428,182.54,182.46,2.93]
[1755569471445,3.85478428,182.53,182.46,2.93]
[1755569471649,3.85478428,182.52,182.46,2.93]
[1755569471946,3.03,182.55,182.46,2.93]
[1755569472247,8.30459402,182.54,182.46,2.93]
[1755569472443,3.85736694,182.53,182.46,2.93]
[1755569472643,3.85736694,182.52,182.46,2.93]
[1755569472944,3.03,182.55,182.46,2.93]
[1755569473251,8.30744029,182.54,182.46,2.93]
[1755569473442,3.85867792,182.53,182.46,2.93]